Cogmind - Beta 16.1 @@@ ROGUE MODE // 2026.02.28 @ 18:52:05 Player: Desos Result: Destroyed by G-34 Mercenary with Small Laser Performance ------------- Evolutions (0) 0 Regions Visited (1) 200 Robots Destroyed (5) 25 Value Destroyed (56) 56 Prototype IDs (0) 0 Alien Tech Used (0) 0 Bonus (0) 0 TOTAL SCORE: 281 Bonus ------- None Cogmind --------- Core Integrity 0/250 Matter 79/300 Energy 100/100 System Corruption 0% Temperature Cool (6) Movement Core (1500) Ox29 Location -10/Materials Parts ------- > --- POWER (1) -------- (None) > --- PROPULSION (2) --- (None) > --- UTILITY (2) ------ Medium Storage Unit Huge Storage Unit > --- WEAPON (2) ------- (None) > --- INVENTORY (25) --- Light Ion Engine Light Ion Engine Light Treads Wheel Wheel Medium Matter Pod (0) Medium Matter Pod (0) High-capacity Matter Pod (0) Signal Interpreter Seismic Detector Beam Cannon Light Cannon Light Cannon Peak State ------------ > --- POWER ------------ Ion Engine > --- PROPULSION ------- Wheel Wheel > --- UTILITY ---------- Small Storage Unit Medium Storage Unit > --- WEAPON ----------- Assault Rifle Assault Rifle > --- INVENTORY -------- Light Ion Engine Light Treads Light Treads Light Treads Aluminum Leg Aluminum Leg Medium Matter Pod Signal Interpreter Small Laser Light Assault Rifle [Rating: 8] Favorites ----------- Power Ion Engine Engine Ion Engine Propulsion Wheel Treads Light Treads Leg Aluminum Leg Wheel Wheel Utility Medium Storage Unit Storage Medium Storage Unit Weapon Assault Rifle Energy Gun Small Laser Ballistic Gun Assault Rifle Ballistic Cannon Light Cannon Build | -11 -10 ------- Run | Yrd Mat Slots Evolved . | . . Power . | . . Propulsion . | . . Utility . | . . Weapon . | . . Parts Attached 14 | 10 4 Power 1 | 1 . Engine 1 | 1 . Core . | . . Reactor . | . . Propulsion 5 | 5 . Treads 2 | 2 . Leg 1 | 1 . Wheel 2 | 2 . Hover . | . . Flight . | . . Utility 3 | 1 2 Device . | . . Storage 3 | 1 2 Processor . | . . Hackware . | . . Protection . | . . Artifact . | . . Weapon 5 | 3 2 Energy Gun 1 | 1 . Energy Cannon . | . . Ballistic Gun 3 | 2 1 Ballistic Cannon 1 | . 1 Launcher . | . . Special Weapon . | . . Impact Weapon . | . . Slashing Weapon . | . . Piercing Weapon . | . . Special Melee Weapon . | . . Unidentified Prototypes . | . . Parts Lost 5 | . 5 Power 1 | . 1 Propulsion 2 | . 2 Utility . | . . Weapon 2 | . 2 Highest Loss Streak 4 | . 4 To Critical Strikes . | . . Average Backups 9 | 4 10 Power 1 | . 1 Propulsion 3 | 3 3 Utility 2 | . 3 Weapon 2 | . 2 Tool/Special . | . . Unused Backups 13 | . 13 Power 2 | . 2 Propulsion 2 | . 2 Utility 6 | . 6 Weapon 3 | . 3 Tool/Special . | . . Average Slot Usage (%) 91 | . 91 Engine 12 | . 12 Treads 5 | . 5 Wheel 21 | . 21 Storage 25 | . 25 Energy Gun 2 | . 2 Ballistic Gun 15 | . 15 Ballistic Cannon 5 | . 5 Peak Build Rating 8 | 6 8 Average Rating 6 | 4 7 On Entrance 3 | . 6 Avg Prop Armor Cover (%) 9 | 9 . Naked Turns . | . . Heaviest Build 100 | 13 100 Greatest Support 40 | 20 40 Greatest Overweight (x) 4 | . 4 Average Overweight (x) 1 | . 1 Largest Inventory Capacity 25 | 8 25 Average Capacity 16 | 6 17 Most Carried 13 | 6 13 Average Carried 9 | 5 10 Final Capacity 25 | 8 25 Final Carried 13 | 6 13 Class Distribution -------------------- 100% | Mutant Dominant Class ---------------- Mutant | -10/Materials Resources | -11 -10 ----------- Run | Yrd Mat Matter Collected 215 | 182 33 Remotely . | . . Salvage Created 46 | . 46 Parts 5 | . 5 Haulers Intercepted . | . . Recyclers Shooed . | . . Parts Field Recycled . | . . Retrieved Matter . | . . Parts Self-Destructed . | . . Prevented . | . . Parts Restored . | . . Kills | -11 -10 ------- Run | Yrd Mat Combat Hostiles Destroyed 4 | . 4 Melee 2 | . 2 Guns 2 | . 2 Classes Destroyed 2 | . 2 Watcher 1 | . 1 Swarmer 4 | . 4 Best Kill Streak 2 | . 2 Combat Bots Only 2 | . 2 Max Kills in Single Turn 1 | . 1 Gunslinging . | . . Exploded . | . . Melee 1 | . 1 Uniques/NPCs Destroyed . | . . Combat | -11 -10 -------- Run | Yrd Mat Hostile Shots Fired 132 | . 132 Missed 30 | . 30 Hits 102 | . 102 Projectile 102 | . 102 Critical Strikes 1 | . 1 Damage Taken 1003 | . 1003 Core 254 | . 254 Absorbed by Shields . | . . Core Remaining (%) 100 | 100 . Volleys Fired 10 | . 10 Largest 2 | . 2 Hottest 50 | . 50 Shots Fired 20 | . 20 Gun 10 | . 10 Cannon 10 | . 10 Launcher . | . . Special . | . . Kinetic 20 | . 20 Thermal . | . . Explosive . | . . Electromagnetic . | . . Robot Hit Streak 4 | . 4 Robot Miss Streak 2 | . 2 Penetration Max . | . . Secondary Targets . | . . Shots Hit Robots 11 | . 11 Core Hits 6 | . 6 Critical Kills . | . . Critical Parts Destroyed . | . . Critical Strikes . | . . Melee Attacks . | . . Impact . | . . Slashing . | . . Piercing . | . . Sneak Attacks . | . . Combat Hostiles . | . . Follow-up Attacks . | . . Damage Inflicted 204 | . 204 Guns 61 | . 61 Cannons 105 | . 105 Explosions . | . . Melee . | . . Ramming 38 | . 38 Kinetic 166 | . 166 Thermal . | . . Explosive . | . . Electromagnetic . | . . Impact . | . . Slashing . | . . Piercing . | . . Highest Corruption . | . . Average Corruption . | . . Corruption Purged . | . . Corruption Blocked . | . . Overload Shots . | . . Overflow Damage . | . . Projectiles . | . . Explosions . | . . Melee . | . . Knockbacks 1 | . 1 Impact . | . . Kinetic . | . . Secondary 1 | . 1 Self-Inflicted Damage . | . . Shots . | . . Rammed 11 | . 11 Targets Rammed 13 | . 13 Kicked . | . . Crushed 2 | . 2 Highest Temperature 7 | . 7 Average Temperature 3 | . 3 Received Heat Transfer 309 | . 309 Siege Activations . | . . Martial Activations . | . . Shielding Activations . | . . Robots Disrupted . | . . Combat Hostiles . | . . Robots Corrupted . | . . Combat Hostiles . | . . Parts Fried . | . . Impact Corruptions . | . . Robots Melted . | . . Combat Hostiles . | . . Parts Melted . | . . Heat Transferred . | . . Parts Sabotaged . | . . Parts Stolen . | . . Parts Stripped . | . . Power Chain Reactions . | . . Alert | -11 -10 ------- Run | Yrd Mat Maximum Alert Level . | . . Low Security (%) 100 | 100 100 Level 1 . | . . Level 2 . | . . Level 3 . | . . Level 4 . | . . Level 5 . | . . High Security . | . . Max Security . | . . Peak Influence 93 | . 93 Initial . | . . Average 15 | . 17 Influence Increases 181 | . 181 Destroy 0b10 Robot/C 80 | . 80 Destroy 0b10 Robot/NC 5 | . 5 Destroy Leader 22 | . 22 Successful Hack 29 | . 29 Lose Combat Pursuer 45 | . 45 Influence Decreases 152 | . 152 Time Decay 102 | . 102 Lost Part 50 | . 50 Squads Dispatched 2 | . 2 Investigation . | . . Extermination . | . . Reinforcement 2 | . 2 Assault . | . . Garrison . | . . Intercept . | . . Searches Triggered . | . . Construction Impeded . | . . Haulers Reinforced . | . . Active Scanning Responses . | . . Cargo Convoy Interrupts . | . . Stealth | -11 -10 --------- Run | Yrd Mat Distress Signals 1 | . 1 Communications Jammed . | . . Distress Signals . | . . Times Spotted 13 | . 13 Peak Tracking Total 8 | . 8 Tactical Retreats 2 | . 2 Traps | -11 -10 ------- Run | Yrd Mat Traps Triggered . | . . Indirectly . | . . Trap Hack Attempts . | . . Triggered . | . . Disarmed . | . . Reprogrammed . | . . Reused . | . . Traps Extracted . | . . Installed . | . . Triggered . | . . Machines | -11 -10 ---------- Run | Yrd Mat Machines Disabled . | . . Max in Single Turn . | . . Machines Repaired . | . . Machines Dismantled . | . . Machines Sabotaged . | . . Overloaded Fab Kills . | . . Hacking | -11 -10 --------- Run | Yrd Mat Machines Accessed 3 | . 3 Terminals 2 | . 2 Fabricators . | . . Repair Stations . | . . Recycling Units 1 | . 1 Scanalyzers . | . . Garrison Access . | . . Total Hacks 4 | . 4 Successful 4 | . 4 Failed . | . . Catastrophic . | . . Database Lockouts . | . . Manual 4 | . 4 Terminals 3 | . 3 Fabricators . | . . Repair Stations . | . . Recycling Units 1 | . 1 Scanalyzers . | . . Garrison Access . | . . Terminal Hacks . | . . Fabricator Hacks . | . . Repair Station Hacks . | . . Recycling Unit Hacks . | . . Scanalyzer . | . . Garrison Access Hacks . | . . Unauthorized Hacks 4 | . 4 Terminals 3 | . 3 Assimilate 1 | . 1 Botnet 2 | . 2 Fabricators . | . . Repair Stations . | . . Recycling Units 1 | . 1 Recyclers 1 | . 1 Scanalyzers . | . . Garrison Access . | . . Data Cores Recovered . | . . Used . | . . Hacking Detections 2 | . 2 Full Trace Events . | . . Feedback Events . | . . Feedback Blocked . | . . Robot Schematics Acquired . | . . Robots Built . | . . Authchips . | . . Time . | . . Total Robot Build Rating . | . . Part Schematics Acquired . | . . Parts Built . | . . Authchips . | . . Time . | . . Total Part Build Rating . | . . Part Studies Acquired . | . . Parts Repaired . | . . Time . | . . Parts Recycled . | . . Recycled Matter . | . . Retrieved Matter . | . . Retrieved Components . | . . Parts Scanalyzed . | . . Part Schematics Acquired . | . . Parts Damaged . | . . Bothacking | -11 -10 ------------ Run | Yrd Mat Used RIF Installer . | . . Robots Hacked . | . . Non-combat . | . . Combat . | . . Robot Hacks Applied . | . . Relay Couplers Released . | . . Fabnet Peak Effective % . | . . Robots Rewired . | . . Allies Hacked . | . . Hacks Repelled . | . . Allies | -11 -10 -------- Run | Yrd Mat Total Allies . | . . Largest Group . | . . Highest-Rated Group . | . . Highest-Rated Ally . | . . Total Orders . | . . Ally Attacks . | . . Total Damage . | . . Kills . | . . Allies Corrupted . | . . Allies Melted . | . . Intel | -11 -10 ------- Run | Yrd Mat Active Infowar (turns) . | . . Robot Analysis Total . | . . Derelict Logs Recovered . | . . Drone Launches . | . . Drone Recoveries . | . . Exploration | -11 -10 ------------- Run | Yrd Mat Turns Passed 601 | 78 523 Spaces Moved 417 | 57 360 Core 14 | 14 . Treads 26 | 14 12 Legs 1 | 1 . Wheels 376 | 28 348 Hover . | . . Flight . | . . Fastest Speed 50 | 50 80 Average Speed 106 | 92 108 Slowest Speed 320 | 160 320 Overloaded Moves . | . . Propulsion Burnouts . | . . Robots Hopped . | . . Potential Cave-ins . | . . Cave-ins Triggered . | . . Exploration Rate (%) 28 | 5 52 Regions Visited 1 Branch Regions . Pre-discovered Areas . | . . Known Exits Taken . | . . Unknown Exits Taken 1 | 1 . Scrap Searched . | . . Spaces Dug . | . . Terrain Destroyed . | . . Melee . | . . Projectile . | . . AOE . | . . Terrain Rammed . | . . Walls Destroyed . | . . Machines Disabled . | . . Actions | -11 -10 --------- Run | Yrd Mat Total 518 | 75 443 Wait 29 | . 29 Move 416 | 56 360 Hop . | . . Pick Up 20 | 6 14 Fast Attach 6 | 6 . Attach 1 | . 1 Detach . | . . Swap 16 | 7 9 Drop 7 | . 7 Fire 10 | . 10 Melee . | . . Ram . | . . Kick . | . . Crush 13 | . 13 Escape Stasis . | . . Rewire . | . . Trap . | . . Miscellaneous . | . . Route ------- -11/Scrapyard -10/Materials (discovered 3 exits: [*Mat x2] / [*Min]) History --------- Turn | Location | Event 10 | -11/Scrapyard | Discovered new exit (range 15) 79 | -11/Scrapyard | Entered Materials 80 | -10/Materials | Met a group of wandering Federalists 216 | -10/Materials | Discovered new exit (range 5) 255 | -10/Materials | Discovered new exit (range 15) 317 | -10/Materials | Build established: Mutant 356 | -10/Materials | Discovered new exit (range 11) 542 | -10/Materials | Core integrity fell below 50% 588 | -10/Materials | Core integrity fell below 20% 602 | -10/Materials | Destroyed by G-34 Mercenary with Small Laser Last Messages --------------- 00493_ Slammed into S-10 Pest. [Achievement: For Emergencies Only] 00494_ Acquired 11 matter. 00497_ Slammed into S-10 Pest. 00511_ Lgt. Cannon destroyed. 00513_ Slammed into S-10 Pest. 00519_ Crushed S-10 Pest. 00519_ S-10 Pest destroyed. 00545_ K-01 Serf collects debris. 00551_ Crushed S-10 Pest. 00551_ S-10 Pest destroyed. 00552_ K-01 Serf collects debris. 00554_ Slammed into K-01 Serf. 00560_ Assault Rifle destroyed. 00561_ Ion Engine destroyed. 00563_ Critical hit (Burn: +37). 00570_ Slammed into G-34 Mercenary. 00579_ Lgt. Treads destroyed. 00587_ K-01 Serf collects debris. 00594_ R-06 Scavenger collects Lgt. Ion Engine. Map ----- +----------------------------------------------------+ | """ #???????????????????????????????? | | """ #???????????????????????????????? | | #???????????????????????????????? | | #########?????????????? ??????????????? | | ?????????????????????? ??????????????? | | #???#####????????????? ??????????????? | | #???# #???????????? #?????????????? | | #???# < #???????????? #?????????????? | | #???# #???????????? #?????????????? | | #???# ########?????? #?????????????? | | #???# ??????? #?????????????? | | #???# ?????????T" k#?????????????? | | #???# ??????????? #?????????????? | | ##### ????????????? #?????????????? | | =[![# ###########????# ##########????? | | [ # # #????# # #????? | | !! + + #????# # """ #????? | | ! # # ###### # """ #????? | | # # + # """ #????? | | + ################ + #????? | | ######+#####???????????##r# """ #????? | | ?# ! #????????????# # """ #????? | | ?# #????????????#g# """ #????? | | ?# """ """ #????????????#r# #????? | | ?# """ """ #????????????#g##########????? | | ?# """ """ #????????????#@#?????????????? | | ?# #????????????#g#?????????????? | | ?# #????????????#%#?????????????? | | ?# #????????????#%#?????????????? | | ?###########????????????o%%?????????????? | | ???????????????????????? ?????????????? | | ???????????????????????? ?????????????? | | ???????????????????????? ?????????????? | | ???????????????????????[ ????????????? | | ??????????????????????? ????????????? | | ??????????????????????? ????????????? | | ??????????????????????? ##????????????? | | ?????????????????????? ??????????????? | | ?????????????????????? ??????????????? | | ?????????????????????? ??????????????? | | ?????????????????????? ??????????????? | | ??????????????????????? ??????????????? | | ????????????????????????????????????????? | | ???????????????????????????????????????? | | ???????????????????????????????????????? | | ???????????????????????????????????????? | | ???????????????????????????????????????? | | ######+##???????????????????????????????? | | ????????????????????????????????? | | ?????????????????????????????????? | +----------------------------------------------------+ Best States ------------- Heat Dissipation 25 Energy Generation 10 Energy Capacity 250 Matter Stores 152 Matter Capacity 300 Sight Range 16 Terrain Scan Density 10 Evasion (%) 50 Recoil Reduction 2 Item Schematics ----------------- None Robot Schematics ------------------ None Fabricated ------------ Nothing Repaired ---------- Nothing Studied --------- None Alien Tech Used ----------------- None Achievements -------------- Bumper Bots DATA ERROR: Steam Global Achievement% For Emergencies Only Organ Harvest Challenges ------------ None Game ------ Seed GravmagBiocellShield Manual? 0 Play Time 00:11:12 Cumulative 30.9 hours Start 2026.02.28 @ 18:41:42 End 2026.02.28 @ 18:52:05 Sessions 1 Manual Loads 0 Difficulty Rogue Special Mode None Game No. 61 Rogue 61 Adventurer 0 Explorer 0 Win Type - Total 0 Types 0/0/0/0/0/0/0/0/0/0 Lore% 15 Gallery% 16 Achievement% 10 Wizard Run 0 Options --------- Layout 1 ASCII 0 Keyboard 0 Movement Mouse Keybinds 1 Fullscreen 1 Font 48/Smallcaps Map View 50x35 Zoom Use 0% Tactical HUD 1 Map Filters NONE Filters NONE Steam 1 RUN: 7ec0c64f-46a8-4d75-866c-b38dbdabb601